bitfinex-derivatives/quotes_ETHF0:USTF0_20260204
["timestamp","ask_amount","ask_price","bid_price","bid_amount"]
[1770240103038,0.47927296,2152.4,2151.2,0.4956036]
[1770240103231,0.47927296,2152.3,2151.1,0.23291]
[1770240105233,0.47927296,2152.1,2150.7,0.4956036]
[1770240105434,2.26268956,2152.2,2150.6,1.08617]
[1770240105435,0.47927296,2151.8,2150.6,1.08617]
[1770240106735,1.07172,2150.6,2148.7,0.51154646]
[1770240106936,2.26268956,2150.7,2149.3,0.51154646]
[1770240107137,1.30436,2151.1,2149.6,0.51154646]
[1770240107335,0.23292,2151.1,2149.7,8.04940498]
[1770240107733,3.97358461,2151.0,2149.7,8.56095144]
[1770240108033,3.97358461,2150.9,2149.7,0.51154646]
[1770240108240,3.97353293,2150.8,2149.8,8.04940498]
[1770240108440,3.98061854,2150.7,2149.8,8.04940498]
[1770240108740,0.0053408,2150.8,2149.8,8.04940498]
[1770240108942,3.97888161,2150.7,2149.8,8.04940498]
[1770240109142,0.0053408,2150.8,2149.8,8.04940498]
[1770240109334,3.97898717,2150.7,2149.8,8.04940498]
[1770240109539,3.97898717,2150.6,2149.8,8.04940498]
[1770240109840,3.98809984,2150.5,2149.3,0.52480675]
[1770240110040,3.98809984,2150.4,2149.4,8.57421173]
[1770240110237,40.57809646,2150.8,2149.5,0.52480675]
[1770240110641,44.57014245,2150.8,2149.6,8.04940498]
[1770240110836,3.99204599,2150.7,2149.6,8.04940498]
[1770240111038,3.99204599,2150.6,2149.6,8.04940498]
[1770240111238,40.57275566,2150.7,2149.6,8.04940498]
[1770240111435,3.99295181,2150.6,2149.6,8.04940498]
[1770240111639,3.99295181,2150.5,2149.6,8.04940498]
[1770240111943,40.57809646,2150.8,2149.6,8.04940498]
[1770240111944,3.99295181,2150.4,2149.6,8.04940498]
[1770240112144,3.99295181,2150.3,2149.6,8.04940498]
[1770240112344,40.57809646,2150.8,2149.6,8.04940498]
[1770240112744,44.56949786,2150.8,2149.6,8.04940498]
[1770240112942,3.9914014,2150.7,2149.6,8.04940498]
[1770240113143,3.9914014,2150.6,2149.6,20.44803797]
[1770240113445,3.9914014,2150.5,2149.6,8.5832514]
[1770240113644,3.9914014,2150.4,2149.6,8.5832514]
[1770240113844,3.9914014,2150.3,2149.6,8.5832514]
[1770240114042,40.57809646,2150.8,2149.7,0.53389546]
[1770240114345,3.99061764,2150.7,2149.9,0.53389546]
[1770240114540,0.0053408,2150.8,2149.9,0.53389546]
[1770240114843,0.0053408,2150.8,2150.1,12.39821768]
[1770240115046,0.0053408,2150.8,2150.2,8.04940498]
[1770240115245,0.0053408,2150.8,2150.2,19.91419155]
[1770240116246,0.0053408,2150.8,2150.3,12.39821768]
[1770240116447,0.0053408,2150.8,2150.3,0.53343111]
[1770240116746,5.37678475,2151.5,2150.7,11.86478657]
[1770240116747,40.57275566,2151.5,2150.7,11.86478657]
[1770240116948,3.9901404,2151.3,2149.8,0.53003929]
[1770240117147,40.57275566,2151.3,2150.0,0.53003929]
[1770240117540,44.56289606,2151.3,2150.1,8.57944427]
[1770240117744,3.9901404,2151.2,2150.2,0.53003929]
[1770240117945,3.9901404,2151.1,2150.3,8.04940498]
[1770240118246,3.9901404,2151.0,2150.3,8.04940498]
[1770240118441,3.9901404,2150.9,2150.3,8.04940498]
[1770240118644,3.9901404,2150.8,2150.3,8.57894316]
[1770240118845,40.5783723,2151.3,2150.3,8.57894316]
[1770240119244,44.5718003,2151.3,2150.3,8.57894316]
[1770240119442,3.993428,2151.2,2150.3,8.57894316]
[1770240119643,3.993428,2151.1,2150.3,8.57894316]
[1770240119849,3.993428,2151.0,2150.3,8.57894316]
[1770240120147,3.993428,2150.9,2150.5,12.39433878]
[1770240120340,1.28417273,2150.8,2150.7,11.86478657]
[1770240120547,40.5783723,2151.3,2150.6,8.04940498]
[1770240120848,0.00561664,2151.3,2150.6,8.04940498]
[1770240121451,0.00561664,2151.3,2150.7,11.86478657]
[1770240121849,0.00561664,2151.3,2150.8,19.91419155]
[1770240122246,0.00561664,2151.3,2150.9,11.86478657]
[1770240122849,0.00561664,2151.3,2151.0,8.58116211]
[1770240123050,0.00561664,2151.3,2150.9,0.53175713]
[1770240123349,0.00561664,2151.3,2151.1,12.3965437]
[1770240123649,0.00561664,2151.3,2151.1,0.53175713]
[1770240123849,0.00561664,2151.3,2151.2,19.91419155]
[1770240125148,40.57275566,2151.6,2151.2,19.91419155]
[1770240125351,20.52335068,2152.1,2151.7,11.86478657]
[1770240125652,12.0,2152.1,2151.7,0.5279633]
[1770240125852,12.0,2152.1,2151.9,11.86478657]
[1770240126148,0.00418161,2152.1,2152.0,11.86478657]
[1770240126650,5.37678475,2153.0,2151.9,0.00577836]
[1770240126850,5.37678475,2153.0,2152.0,0.52902776]
[1770240126851,12.0,2153.0,2152.0,0.52902776]
[1770240127247,14.77968371,2153.1,2152.0,0.52902776]
[1770240127248,12.0,2152.9,2152.0,0.52902776]
[1770240127645,12.00546226,2152.9,2152.1,11.86478657]
[1770240127849,12.00546226,2152.9,2152.1,12.39381433]
[1770240128353,12.00546226,2152.9,2152.2,11.86478657]
[1770240129053,12.00546226,2152.9,2152.2,0.52987154]
[1770240129256,12.00546226,2152.9,2152.3,11.86478657]
[1770240129755,12.00546226,2152.9,2152.1,0.52987154]
[1770240129957,12.00546226,2152.9,2152.1,12.39465811]
[1770240130158,12.00546226,2152.9,2152.2,11.86478657]
[1770240131054,12.00546226,2152.9,2151.9,0.00577836]
[1770240131260,2.26268956,2152.7,2151.4,0.52975515]
[1770240131553,0.23277,2152.5,2151.4,0.52975515]
[1770240131957,12.0,2152.4,2151.4,0.52975515]
[1770240132157,12.0,2152.4,2151.4,0.53515443]
[1770240132360,12.0,2152.4,2151.4,12.399941]
[1770240132557,2.26268956,2152.3,2150.8,0.5304202]
[1770240133062,12.0,2152.2,2150.8,0.5304202]
[1770240133357,12.23281,2152.2,2150.8,0.5304202]
[1770240133557,12.23281,2152.2,2150.8,0.53467432]
[1770240133750,12.23281,2152.2,2150.9,0.6083202]
[1770240134255,12.23281,2152.2,2151.1,0.5304202]
[1770240134455,0.23281,2152.2,2151.1,12.39520677]
[1770240134658,12.0,2152.1,2151.2,12.39713867]
[1770240134958,12.0,2152.1,2151.2,0.5323521]
[1770240135160,12.0,2152.1,2151.5,11.86478657]
[1770240135353,12.0,2152.1,2151.5,0.5323521]
[1770240135553,12.0,2152.1,2151.7,11.86478657]
[1770240135959,12.0,2152.1,2151.8,11.86478657]
[1770240136158,0.465,2152.4,2151.7,11.86478657]
[1770240136456,0.465,2152.4,2151.5,0.5323521]
[1770240136457,12.0,2152.3,2151.6,11.86478657]
[1770240136757,12.0,2152.3,2151.5,12.39713867]
[1770240136958,12.0,2152.3,2151.6,11.86478657]
[1770240137458,12.0,2152.3,2151.7,11.86478657]
[1770240137757,12.0,2152.3,2151.6,11.86478657]
[1770240137956,0.465,2152.4,2151.6,11.86478657]
[1770240138158,12.0,2152.2,2151.6,11.86478657]
[1770240138557,12.0,2152.2,2151.7,11.86478657]
[1770240138958,12.0,2152.2,2151.8,11.86478657]
[1770240139158,12.0,2152.2,2151.7,11.86478657]
[1770240139856,12.0,2152.2,2151.8,11.86478657]
[1770240140052,12.0,2152.2,2151.7,11.86478657]
[1770240140457,12.0,2152.2,2151.8,11.86478657]
[1770240140658,12.0,2152.2,2151.7,11.86478657]
[1770240141050,12.0,2152.2,2150.9,0.0779]
[1770240141051,0.23288,2151.5,2150.9,0.0779]
[1770240141256,4.659,2151.8,2150.9,0.61051519]
[1770240141453,16.89182,2152.1,2150.9,0.61051519]
[1770240141657,12.0,2151.9,2150.9,0.61051519]
[1770240143358,4.659,2151.5,2150.2,0.23302]
[1770240143561,4.659,2151.5,2150.3,0.53579783]
[1770240143562,0.23291,2151.3,2150.3,0.53579783]
[1770240143756,4.89191,2151.3,2150.3,0.53579783]
[1770240143961,12.0,2151.2,2150.3,0.53579783]
[1770240144158,12.00416084,2151.2,2150.3,0.53579783]
[1770240145461,12.00416084,2151.2,2149.3,0.54072681]
[1770240145462,10.11674002,2151.0,2149.3,0.54072681]
[1770240145757,4.97289527,2151.0,2149.3,0.54072681]
[1770240145961,4.659,2150.8,2149.3,0.54072681]
[1770240146460,16.659,2150.7,2149.3,0.54072681]
[1770240146661,0.465,2150.6,2149.3,0.54072681]
[1770240146862,4.659,2150.4,2149.3,0.54072681]
[1770240147057,12.0,2150.5,2149.3,0.54072681]
[1770240147257,16.659,2150.4,2149.2,0.23313]
[1770240147464,2.49569956,2150.3,2148.5,0.53462427]
[1770240147759,12.0,2150.5,2149.0,0.53462427]
[1770240148065,12.0,2150.4,2149.0,0.53462427]
[1770240148260,12.0,2150.4,2149.1,0.53462427]
[1770240148563,12.0,2150.4,2149.2,0.53462427]
[1770240150562,12.0,2150.4,2148.6,0.52996827]
[1770240150757,0.23304,2150.1,2148.6,0.52996827]
[1770240151163,12.0,2150.0,2148.7,0.52996827]
[1770240151365,0.23302,2150.2,2149.0,0.52996827]
[1770240151563,0.23304,2150.1,2149.0,0.52996827]
[1770240151958,12.0,2150.0,2149.0,0.52996827]
[1770240155267,12.0,2150.0,2149.0,0.76311827]
[1770240155569,12.0,2150.0,2149.1,0.52159665]
[1770240156267,0.465,2150.6,2149.4,0.52159665]
[1770240156464,12.233,2150.5,2149.1,0.52159665]
[1770240156668,12.233,2150.5,2149.2,0.52321745]
[1770240157170,0.233,2150.5,2149.3,0.52321745]
[1770240157371,12.0,2150.4,2149.3,0.52321745]
[1770240158074,12.0,2150.4,2149.3,0.75633745]
[1770240158370,12.0,2150.4,2149.4,0.52321745]
[1770240158772,12.0,2150.4,2148.4,1.07279]
[1770240158773,19.2356913,2150.3,2148.9,0.75948756]
[1770240159079,19.2356913,2150.3,2149.0,0.52632756]
[1770240159080,7.15470956,2150.3,2149.0,0.52632756]
[1770240159472,0.23304,2150.1,2149.0,0.52632756]
[1770240159679,0.23305,2150.0,2149.0,0.52632756]
[1770240160178,12.0,2149.9,2149.0,0.52632756]
[1770240160475,1.07212,2149.8,2148.0,0.52648586]
[1770240160674,0.08100219,2149.8,2148.6,0.52648586]
[1770240160879,12.0,2149.7,2148.6,0.52648586]
[1770240161274,12.23309,2149.7,2148.6,0.52648586]
[1770240161776,0.2331,2149.5,2148.6,0.52648586]
[1770240161980,0.23779935,2149.5,2148.6,0.52648586]
[1770240162181,12.0,2149.4,2148.6,0.52648586]
[1770240162480,4.659,2149.3,2147.7,0.52648586]
[1770240162679,0.23319,2148.7,2147.7,0.52648586]
[1770240163178,12.0,2148.6,2147.7,0.52648586]
[1770240163875,5.73177,2148.5,2146.7,0.61140926]
[1770240164183,0.23325,2148.1,2146.7,0.53038359]
[1770240164482,16.659,2148.0,2146.7,0.53038359]
[1770240164782,0.466,2147.9,2146.7,0.53038359]
[1770240164979,0.47035835,2147.9,2146.7,0.53038359]
[1770240165180,12.0,2147.8,2146.7,0.53038359]
[1770240165683,12.0,2147.8,2146.1,0.53185873]
[1770240165879,12.0,2147.8,2146.2,0.53185873]
[1770240166074,12.0,2147.8,2146.4,0.53185873]
[1770240166378,12.0,2147.7,2146.4,0.53185873]
[1770240166776,0.47035835,2147.9,2146.6,0.53587747]
[1770240166975,12.0,2147.8,2146.6,0.53587747]
[1770240167273,0.47035835,2147.9,2146.6,0.53587747]
[1770240167274,12.47035835,2147.9,2146.6,0.53587747]
[1770240168177,12.47035835,2147.9,2146.6,0.76928747]
[1770240168378,12.00435835,2147.9,2146.8,0.76926747]
[1770240168680,0.466,2148.7,2147.1,0.53610419]
[1770240168882,12.0,2148.6,2147.2,0.53610419]
[1770240169382,12.0,2148.6,2147.3,0.53610419]
[1770240169778,12.00578348,2148.6,2147.3,0.54091349]
[1770240169981,12.00578348,2148.6,2147.3,0.77425349]
[1770240170277,0.00578348,2148.6,2147.5,0.53610419]
[1770240170677,0.23311,2149.4,2147.7,0.53558876]
[1770240170882,12.0,2149.3,2147.8,0.53269702]
[1770240171885,12.00487698,2149.3,2147.8,0.76597702]
[1770240172180,12.00487698,2149.3,2147.9,0.53269702]
[1770240172574,12.00487698,2149.3,2148.1,0.53058426]
[1770240172883,12.00487698,2149.3,2148.3,0.53058426]
[1770240174885,0.23314,2149.2,2148.3,0.53058426]
[1770240175378,12.0,2149.1,2148.3,0.53058426]
[1770240176183,12.0,2149.1,2148.0,0.52737164]
[1770240176380,12.23314,2149.1,2148.0,0.52737164]
[1770240177285,12.0,2149.0,2148.0,0.52737164]
[1770240178789,12.0,2149.0,2148.0,0.76063164]
[1770240178990,12.0,2149.0,2148.1,0.52213322]
[1770240179390,12.0,2149.0,2148.3,0.52213322]
[1770240182186,0.00487698,2149.3,2148.4,0.50083006]
[1770240182392,11.47786678,2149.2,2148.5,0.50083006]
[1770240182990,0.46993658,2149.1,2148.2,0.50083006]
[1770240183396,11.47786678,2149.0,2148.2,0.50083006]
[1770240186397,0.46993658,2149.1,2148.2,0.50083006]
[1770240186698,0.00487698,2149.3,2148.2,0.50083006]
[1770240186699,11.47786678,2148.9,2148.2,0.50083006]
[1770240186889,0.46993658,2149.1,2148.2,0.50083006]
[1770240187288,11.47786678,2149.0,2148.2,0.50083006]
[1770240187692,11.47786678,2149.0,2148.4,0.50083006]
[1770240187897,0.00487698,2149.3,2148.7,0.50083006]
[1770240188098,10.97722678,2149.2,2148.7,0.50083006]
[1770240191295,10.97722678,2149.2,2148.6,0.23319]
[1770240191501,10.97722678,2149.2,2148.3,0.50083006]
[1770240191701,10.97722678,2149.2,2148.4,0.50083006]
[1770240191896,10.97722678,2149.2,2148.5,0.73403006]
[1770240192197,10.97722678,2149.2,2148.6,0.50083006]
[1770240193096,11.44716336,2149.2,2148.3,0.50083006]
[1770240193397,11.44716336,2149.2,2147.8,0.50083006]
[1770240193398,0.46993658,2148.8,2147.8,0.50083006]
[1770240193594,0.46993658,2148.5,2147.4,1.35433006]
[1770240193794,0.46993658,2148.3,2147.4,0.8535]
[1770240194296,0.46993658,2148.1,2147.4,0.8535]
[1770240194799,0.23324,2148.3,2146.8,0.96683006]
[1770240194800,0.46993658,2147.9,2146.8,0.96683006]
[1770240194998,0.46993658,2147.9,2146.9,0.50083006]
[1770240195192,0.46993658,2147.5,2146.4,0.50083006]
[1770240195598,11.44716336,2147.4,2146.4,0.50083006]
[1770240195798,0.47543117,2147.4,2146.4,0.00477207]
[1770240196000,0.46993658,2147.2,2146.4,0.00477207]
[1770240196499,0.00549459,2147.4,2146.5,0.9317]
[1770240196500,11.44716336,2147.1,2146.5,0.9317]
[1770240196700,0.46993658,2147.1,2146.5,0.9317]
[1770240196903,0.46993658,2146.9,2146.5,0.7160093]
[1770240197291,10.97722678,2146.8,2145.8,0.73433006]
[1770240197496,10.97722678,2147.3,2146.0,0.51118572]
[1770240198099,10.97722678,2147.2,2146.0,0.51118572]
[1770240198299,10.97722678,2147.2,2146.0,0.51219714]
[1770240198491,0.00184859,2147.1,2146.0,0.51219714]
[1770240198694,0.00184859,2147.1,2146.1,0.58666143]
[1770240198890,10.97722678,2147.0,2146.1,0.58666143]
[1770240199300,10.97722678,2147.0,2146.1,0.82012143]
[1770240199601,10.97722678,2147.0,2146.2,0.51026143]
[1770240201602,0.00151727,2146.9,2146.1,0.0764]
[1770240201803,0.00151727,2146.9,2145.6,0.51042709]
[1770240201994,0.00151727,2146.7,2145.6,0.51042709]
[1770240202395,10.97722678,2146.6,2145.6,0.51042709]
[1770240204298,10.97722678,2146.6,2145.3,0.51700533]
[1770240204502,10.97722678,2146.6,2145.6,0.23351]
[1770240204702,10.97722678,2146.6,2145.6,0.75076824]
[1770240205100,10.97722678,2146.6,2145.7,0.51725824]
[1770240205501,10.97722678,2146.6,2145.8,0.75075824]
[1770240205708,10.97722678,2146.6,2145.9,0.51725824]
[1770240206398,10.97722678,2146.6,2145.9,0.75073824]
[1770240206602,10.97722678,2146.6,2146.0,0.52556655]
[1770240207098,0.466,2147.1,2146.0,0.52556655]
[1770240207302,10.97722678,2147.0,2146.0,0.52556655]
[1770240207503,10.97722678,2147.0,2145.7,0.52556655]
[1770240207998,11.21059678,2147.0,2145.7,0.52556655]
[1770240208203,11.21059678,2147.0,2145.3,0.52556655]
[1770240208505,0.2334,2146.8,2145.3,0.52556655]
[1770240208703,0.2334,2146.8,2145.4,0.52255555]
[1770240208898,10.97722678,2146.7,2145.4,0.52255555]
[1770240209103,10.97722678,2146.7,2145.5,0.52255555]
[1770240210898,10.97722678,2146.7,2145.6,0.75612525]
[1770240211204,10.97722678,2146.7,2145.9,0.52260525]
[1770240211393,10.97722678,2146.7,2145.8,0.2335]
[1770240211798,10.97722678,2146.7,2145.8,0.75610525]
[1770240212800,10.97722678,2146.7,2145.9,0.75476377]
[1770240214004,10.97722678,2146.7,2145.5,0.75480377]
[1770240215808,10.97722678,2146.7,2145.6,0.52211818]
[1770240216508,7.85882142,2146.7,2145.7,0.52211818]
[1770240216802,0.00549459,2147.4,2146.2,0.75091052]
[1770240217007,7.85882142,2147.3,2146.3,0.51746052]
[1770240217209,7.85882142,2147.3,2145.9,0.51746052]
[1770240217509,0.23336,2147.1,2145.9,0.51746052]
[1770240217905,7.85882142,2147.0,2145.9,0.51746052]
[1770240218210,7.85882142,2147.2,2145.9,0.51746052]
[1770240219806,7.85882142,2147.2,2146.4,0.51307774]
[1770240220002,7.85882142,2147.2,2146.5,0.51307774]
[1770240220606,7.85882142,2147.2,2146.1,0.51307774]
[1770240220909,7.85882142,2147.2,2146.1,0.74654774]
[1770240221509,7.85882142,2147.2,2145.8,0.51290711]
[1770240221804,7.85882142,2147.2,2145.7,0.466]
[1770240222009,0.23336,2147.1,2145.7,0.466]
[1770240222508,0.03264995,2146.9,2145.7,0.466]
[1770240222902,0.03264995,2146.7,2145.7,0.466]
[1770240223303,0.03264995,2146.5,2145.7,0.466]
[1770240223606,7.85882142,2146.4,2145.7,0.466]
[1770240225214,7.85882142,2146.3,2145.7,0.466]
[1770240226009,7.85882142,2146.3,2145.8,0.49537907]
[1770240226208,7.85882142,2146.2,2145.8,0.49537907]
[1770240226507,40.6112383,2147.1,2145.8,0.49537907]
[1770240226508,7.89200693,2146.7,2145.8,0.49537907]
[1770240226710,0.03318551,2146.7,2145.8,0.49537907]
[1770240226909,7.85882142,2146.6,2145.8,0.49537907]
[1770240228113,7.85882142,2146.5,2145.8,0.49537907]
[1770240228710,7.85882142,2146.5,2145.7,0.23351]
[1770240228711,0.02635658,2146.4,2145.7,0.23351]
[1770240229012,7.85882142,2146.5,2145.8,0.49879353]
[1770240230414,7.85882142,2146.5,2145.7,0.23351]
[1770240230415,0.02635658,2146.4,2145.7,0.23351]
[1770240230914,7.87807812,2146.3,2145.7,0.23351]
[1770240231112,0.0192567,2146.3,2145.5,0.49879353]
[1770240231310,7.85882142,2146.2,2145.5,0.49879353]
[1770240231712,0.0192567,2146.1,2145.0,4.24781086]
[1770240231908,0.0192567,2146.1,2145.0,0.10256171]
[1770240232113,0.0192567,2145.9,2145.0,0.10256171]
[1770240232616,0.0192567,2145.7,2145.0,0.10256171]
[1770240232811,0.02393806,2145.7,2145.0,0.10256171]
[1770240233012,7.85882142,2145.6,2145.0,0.10256171]
[1770240233316,0.01731659,2145.5,2145.0,0.10256171]
[1770240233515,0.01731659,2145.5,2144.5,4.64856268]
[1770240233814,7.85882142,2145.4,2144.6,0.50528333]
[1770240234016,0.01706293,2145.3,2144.5,0.50528333]
[1770240234515,7.85882142,2145.2,2144.5,0.50528333]
[1770240234713,7.87588435,2145.6,2144.5,0.50528333]
[1770240234913,0.00501891,2145.5,2144.5,0.50528333]
[1770240235316,0.00501891,2145.3,2144.2,0.5093499]
[1770240235610,0.00501891,2145.3,2143.9,0.5093499]
[1770240235815,0.00501891,2145.1,2143.9,0.5093499]
[1770240236016,0.00501891,2145.1,2143.8,0.7430599]
[1770240236212,0.00501891,2144.9,2143.8,0.23918783]
[1770240236410,0.00501891,2144.9,2143.8,0.00547783]
[1770240236716,7.85882142,2144.8,2143.9,0.5053591]
[1770240237117,7.85882142,2144.7,2144.1,0.23368]
[1770240237306,7.85882142,2144.9,2143.9,0.5053591]
[1770240237511,0.01300052,2144.9,2143.9,0.5053591]
[1770240237709,7.85882142,2144.8,2143.9,0.5053591]
[1770240238116,7.87182194,2144.8,2143.9,0.5053591]
[1770240239112,0.0148309,2144.7,2143.8,0.50995498]
[1770240239318,7.85882142,2144.8,2143.8,0.50995498]
[1770240240716,7.85882142,2144.8,2144.0,0.23369]
[1770240242616,7.85882142,2144.8,2144.2,0.49283559]
[1770240242811,7.37524525,2144.8,2144.2,0.49283559]
[1770240243016,7.37524525,2144.8,2144.4,0.49283559]
[1770240244217,0.03903745,2145.3,2144.5,0.47639967]
[1770240244418,5.88203005,2145.2,2144.6,0.71001967]
[1770240244720,6.38845634,2145.6,2144.7,0.47639967]
[1770240244916,6.38845634,2145.6,2144.7,0.71001967]
[1770240245320,6.38845634,2145.6,2144.8,0.47639967]
[1770240245721,6.38845634,2145.6,2144.9,0.2336]
[1770240245920,6.38845634,2145.6,2145.0,0.47639967]
[1770240245921,5.88203005,2145.6,2145.0,0.47639967]
[1770240246521,5.88203005,2145.5,2145.1,0.47639967]
[1770240246724,5.88203005,2145.5,2145.1,0.70997967]
[1770240246923,5.88203005,2145.5,2145.1,0.84077967]
[1770240247124,0.50642629,2145.9,2145.3,0.23355]
[1770240247322,3.92133468,2145.6,2145.3,0.23355]
[1770240247725,0.50642629,2145.9,2145.3,0.23355]
[1770240248021,2.27256331,2146.8,2145.4,0.23354]
[1770240248022,0.5118926,2146.2,2145.4,0.23354]
[1770240248616,2.95985604,2146.1,2145.4,0.23354]
[1770240248820,2.44722878,2146.1,2145.3,0.0040777]
[1770240249021,2.44722878,2146.1,2145.8,0.2335]
[1770240249326,0.51201257,2146.0,2145.4,11.866]
[1770240249720,2.47994861,2145.9,2145.5,0.23353]
[1770240249923,1.49166604,2145.9,2145.5,0.23353]
[1770240250119,5.37678475,2147.5,2145.5,0.47529732]
[1770240250319,1.01636872,2147.2,2146.0,0.23348]
[1770240250524,1.01636872,2147.4,2146.0,0.23348]
[1770240251319,1.02216377,2147.4,2146.0,0.23348]
[1770240251724,1.02216377,2147.4,2146.1,0.23347]
[1770240252118,0.51298738,2147.3,2146.1,0.23347]
[1770240252525,0.51298738,2147.1,2146.1,0.23347]
[1770240252825,0.51298738,2147.1,2145.7,0.23351]
[1770240253024,0.51298738,2147.1,2145.4,12.94031]
[1770240253025,0.51456767,2146.9,2145.8,0.2335]
[1770240253227,0.51456767,2146.9,2145.9,0.23349]
[1770240253528,0.51456767,2146.7,2146.0,0.23348]
[1770240254026,1.01636872,2146.6,2146.0,0.23348]
[1770240254523,1.01636872,2146.5,2146.0,0.23348]
[1770240255027,0.5140751,2146.4,2146.0,0.23348]
[1770240255227,1.53044382,2146.5,2146.0,0.23348]
[1770240255528,0.5140751,2146.4,2146.0,0.23348]
[1770240256127,1.53044382,2146.3,2146.0,0.23348]
[1770240256326,1.01636872,2147.3,2146.0,0.23348]
[1770240258027,1.01636872,2147.2,2146.0,0.23348]
[1770240258227,1.01636872,2147.2,2145.6,0.466]
[1770240258228,0.50642629,2146.8,2144.9,4.14524915]
[1770240258422,1.07361,2146.9,2145.1,0.60719967]
[1770240258423,0.50642629,2146.0,2145.1,0.60719967]
[1770240258618,1.01636872,2145.9,2145.6,1.07431]
[1770240258821,0.50642629,2146.3,2145.4,0.23354]
[1770240259026,1.52279501,2146.2,2145.6,1.07431]
[1770240259226,0.50642629,2146.2,2145.6,0.0041364]
[1770240259427,1.01636872,2146.1,2145.7,1.07431]
[1770240259731,0.50379872,2146.1,2146.0,1.07431]
[1770240260027,0.50642629,2146.5,2146.0,1.07431]
[1770240260228,0.50379872,2146.4,2145.7,0.47639967]
[1770240260427,0.50379872,2146.4,2145.8,1.07431]
[1770240260628,0.50379872,2146.4,2145.9,1.07431]
[1770240261028,0.50379872,2146.4,2146.0,1.07431]
[1770240261229,0.50379872,2146.4,2145.9,1.07431]
[1770240261730,0.50379872,2146.4,2146.0,1.07431]
[1770240262031,0.50379872,2146.4,2145.9,1.07431]
[1770240262526,0.50642629,2146.3,2145.9,1.07431]
[1770240262731,0.50642629,2146.3,2145.6,0.2376564]
[1770240262929,1.01022501,2146.2,2145.6,0.2376564]
[1770240263230,0.50642629,2146.2,2145.6,0.2376564]
[1770240263431,0.50379872,2146.1,2145.9,1.07431]
[1770240263624,0.50642629,2146.5,2145.7,0.47639967]
[1770240263824,0.50379872,2146.4,2145.8,1.07431]
[1770240264222,0.50379872,2146.4,2145.9,1.07431]
[1770240264431,0.50379872,2146.4,2145.7,0.47639967]
[1770240264626,0.50379872,2146.4,2145.9,1.07431]
[1770240265130,0.50379872,2146.4,2146.0,1.07431]
[1770240265330,0.50379872,2146.4,2145.9,1.07431]
[1770240265830,0.50379872,2146.4,2146.0,1.07431]
[1770240266031,0.50379872,2146.4,2145.9,1.07431]
[1770240266430,0.50379872,2146.4,2146.0,1.07431]
[1770240266630,0.50379872,2146.4,2145.9,1.07431]
[1770240267031,0.50379872,2146.4,2146.0,1.07431]
[1770240267231,0.50379872,2146.3,2145.9,1.07431]
[1770240267435,0.50379872,2146.5,2145.9,0.50970573]
[1770240267632,0.50379872,2146.5,2145.6,0.0041364]
[1770240267633,0.46217005,2146.9,2146.2,1.58401573]
[1770240267830,5.05e-06,2147.4,2147.1,0.50970573]
[1770240268029,0.46217005,2148.2,2147.4,0.74302573]
[1770240268230,0.466,2149.1,2146.5,0.50970573]
[1770240268231,0.46217005,2148.1,2146.5,0.50970573]
[1770240268428,0.46217005,2148.0,2146.3,0.23344]
[1770240268731,0.46217005,2148.0,2146.3,0.74314573]
[1770240268927,0.46740594,2148.0,2146.5,0.50970573]
[1770240269131,0.46740594,2148.0,2146.6,0.50970573]
[1770240269524,0.46740594,2148.0,2146.7,1.58401573]
[1770240269724,0.46740594,2148.0,2146.8,0.50970573]
[1770240270325,0.46740594,2148.0,2146.8,1.58401573]
[1770240270529,0.02562742,2147.5,2146.3,0.00581975]
[1770240270929,0.02562742,2147.4,2146.3,0.00581975]
[1770240271326,0.02562742,2147.3,2146.3,0.00581975]
[1770240271531,0.02562742,2147.3,2145.7,0.50970573]
[1770240271730,0.02562742,2146.9,2145.4,0.50970573]
[1770240272527,0.02562742,2146.9,2145.7,0.50970573]
[1770240272831,0.02562742,2146.9,2145.8,0.50970573]
[1770240273138,0.02562742,2146.9,2145.8,0.74320573]
[1770240273436,0.02562742,2146.9,2145.8,0.2335]
[1770240273636,0.02562742,2146.9,2145.5,0.50970573]
[1770240276036,0.02562742,2146.9,2145.7,0.50970573]
[1770240277332,0.02562742,2146.9,2145.8,0.932]
[1770240278833,0.02562742,2146.9,2145.8,1.44170573]
[1770240280033,0.02562742,2146.9,2145.9,0.50970573]
[1770240280237,0.01398386,2147.5,2146.1,0.50970573]
[1770240280440,0.01398386,2147.9,2146.6,0.50970573]
[1770240280631,0.01398386,2147.9,2146.8,0.50970573]
[1770240281032,0.01398386,2147.9,2146.5,0.50970573]
[1770240281637,0.01341068,2147.8,2146.5,0.50970573]
[1770240282042,0.01341068,2147.8,2146.3,0.23344]
[1770240282043,0.24672068,2147.6,2146.2,0.50970573]
[1770240282237,0.01341068,2147.5,2146.2,0.50970573]
[1770240282440,0.01341068,2147.4,2146.2,0.50970573]
[1770240286146,0.01399868,2147.6,2146.2,0.74315573]
[1770240286346,0.01399868,2147.6,2146.3,0.50970573]
[1770240287849,0.01566829,2147.5,2145.9,0.50970573]
[1770240288447,0.01566829,2147.4,2145.9,0.50970573]
[1770240288849,0.01566829,2147.4,2146.2,0.50970573]
[1770240289041,40.61949333,2147.8,2146.2,0.50970573]
[1770240289245,0.00825503,2147.8,2146.5,0.50970573]
[1770240289446,0.05,2147.9,2146.8,0.50970573]
[1770240289745,0.05,2147.9,2146.9,0.74308573]
[1770240289946,0.05,2147.9,2147.0,0.50970573]
[1770240290155,0.05825503,2147.9,2147.0,0.51381743]
[1770240290753,0.05,2147.9,2147.0,0.0041117]
[1770240292254,0.05,2147.9,2146.7,0.51530755]
[1770240299460,0.05,2147.9,2146.8,0.53525877]
[1770240299661,0.05,2147.9,2146.9,0.53525877]
[1770240300058,0.04418025,2147.9,2147.1,0.53525877]
[1770240300863,0.04418025,2147.9,2147.2,0.9314]
[1770240301161,0.04418025,2147.9,2147.2,1.46702984]
[1770240301356,0.04418025,2147.9,2147.3,0.53562984]
[1770240301954,0.00523589,2148.0,2147.3,0.53562984]
[1770240303364,40.6112383,2148.8,2147.3,0.53562984]
[1770240303759,44.3432383,2148.9,2147.3,0.53562984]
[1770240303964,0.23319,2148.7,2147.3,0.53562984]
[1770240304462,0.23647897,2148.7,2147.3,0.54076292]
[1770240306865,0.23647897,2148.7,2147.4,0.51961153]
[1770240307270,0.00328897,2148.7,2147.5,0.51961153]
[1770240308167,0.00328897,2148.7,2147.5,0.75292153]
[1770240308373,0.00328897,2148.7,2147.6,0.51961153]
[1770240309463,0.00328897,2148.7,2147.8,0.52277309]
[1770240312066,8.11475688,2149.6,2148.4,0.52103897]
[1770240312067,0.466,2149.6,2148.4,0.52103897]